fUSD/lending_fUSD_20250530
["ID","MTS","AMOUNT","RATE_DAILY","PERIOD"]
[363122312,1748590255262,-2371.83,0.00022191,2]
[363122313,1748590255272,-420.0,0.00022191,2]
[363122314,1748590255282,-420.0,0.00022191,2]
[363122315,1748590255292,-160.0,0.00022191,2]
[363122316,1748590255302,-288.039804,0.00022191,7]
[363122317,1748590255313,-420.0,0.00022191,2]
[363122318,1748590255324,-431.49701578,0.00022191,2]
[363122319,1748590255335,-328.9,0.00022191,2]
[363122320,1748590255344,-1620.63,0.00022191,2]
[363122321,1748590255354,-565.83,0.00022191,2]
[363122322,1748590255364,-420.0,0.00022191,2]
[363122323,1748590255374,-815.96,0.00022191,2]
[363122324,1748590255384,-420.0,0.00022191,2]
[363122325,1748590255394,-420.0,0.00022191,2]
[363122326,1748590255404,-1626.2,0.00022191,2]
[363122327,1748590255415,-160.0,0.00022191,2]
[363122328,1748590255425,-420.0,0.00022191,2]
[363122329,1748590255435,-420.0,0.00022191,2]
[363122330,1748590255445,-160.0,0.00022191,2]
[363122331,1748590255455,-151.0,0.00022191,7]
[363122332,1748590255464,-151.0,0.00022191,7]
[363122333,1748590255474,-412.0,0.00022191,2]
[363122334,1748590255484,-645.86,0.00022191,2]
[363122335,1748590255494,-538.12,0.00022191,2]
[363122336,1748590255503,-848.69,0.00022191,2]
[363122337,1748590255513,-1190.74,0.00022191,2]
[363122338,1748590255522,-528.37,0.00022191,2]
[363122339,1748590255532,-160.0,0.00022191,2]
[363122340,1748590255542,-420.0,0.00022191,2]
[363122341,1748590255552,-448.63,0.00022191,2]
[363122342,1748590255562,-420.0,0.00022191,2]
[363122343,1748590255572,-420.0,0.00022191,2]
[363122344,1748590255582,-917.29,0.00022191,2]
[363122345,1748590255591,-2806.32,0.00022191,2]
[363122346,1748590255602,-1017.45,0.00022191,2]
[363122347,1748590255612,-420.0,0.00022191,2]
[363122348,1748590255621,-482.9318789,0.00022191,2]
[363122349,1748590255631,-160.0,0.00022191,2]
[363122350,1748590255642,-420.0,0.00022191,2]
[363122351,1748590255652,-500.0,0.00022191,2]
[363122352,1748590255662,-1839.83,0.00022191,2]
[363122353,1748590255673,-420.0,0.00022191,2]
[363122354,1748590255683,-718.31,0.00022191,2]
[363122355,1748590255692,-502.4,0.00022191,2]
[363122356,1748590255702,-420.0,0.00022191,2]
[363122357,1748590255712,-420.0,0.00022191,2]
[363122358,1748590255722,-420.0,0.00022191,2]
[363122359,1748590255731,-420.0,0.00022191,2]
[363122360,1748590255743,-667.45,0.00022191,2]
[363122361,1748590255753,-1170.82,0.00022191,2]
[363122362,1748590255766,-160.0,0.00022191,2]
[363122363,1748590255776,-420.0,0.00022191,2]
[363122364,1748590255786,-420.0,0.00022191,2]
[363122365,1748590255796,-482.59,0.00022191,2]
[363122366,1748590255806,-445.98,0.00022191,2]
[363122367,1748590255817,-420.0,0.00022191,2]
[363122368,1748590255826,-1094.1,0.00022191,2]
[363122369,1748590255836,-1626.93,0.00022191,2]
[363122370,1748590255848,-160.0,0.00022191,2]
[363122371,1748590255858,-160.0,0.00022191,2]
[363122372,1748590255868,-420.0,0.00022191,2]
[363122373,1748590255878,-420.0,0.00022191,2]
[363122374,1748590255888,-1363.56,0.00022191,2]
[363122375,1748590255898,-420.0,0.00022191,2]
[363122376,1748590255908,-700.14,0.00022191,2]
[363122377,1748590255918,-617.71,0.00022191,2]
[363122378,1748590255928,-160.0,0.00022191,2]
[363122379,1748590255938,-420.0,0.00022191,2]
[363122380,1748590255948,-420.0,0.00022191,2]
[363122381,1748590255958,-420.0,0.00022191,2]
[363122382,1748590255968,-420.0,0.00022191,2]
[363122383,1748590255979,-1615.91,0.00022191,2]
[363122384,1748590255989,-451.93,0.00022191,2]
[363122385,1748590256000,-420.0,0.00022191,2]
[363122386,1748590256011,-1570.87,0.00022191,2]
[363122387,1748590256251,-420.0,0.00022191,2]
[363122388,1748590256260,-420.0,0.00022191,2]
[363122389,1748590256270,-420.0,0.00022191,2]
[363122390,1748590256280,-420.0,0.00022191,2]
[363122391,1748590256290,-420.0,0.00022191,2]
[363122392,1748590256300,-2431.8,0.00022191,2]
[363122393,1748590256311,-420.0,0.00022191,2]
[363122394,1748590256320,-160.0,0.00022191,2]
[363122395,1748590256330,-189.74073035,0.00022191,2]
[363122396,1748590256341,-420.0,0.00022191,2]
[363122397,1748590256351,-762.5,0.00022191,2]
[363122398,1748590256361,-560.56913432,0.00022191,2]
[363122399,1748590256372,-420.0,0.00022191,2]
[363122400,1748590256381,-420.0,0.00022191,2]
[363122401,1748590256391,-420.0,0.00022191,2]
[363122402,1748590256400,-1442.73,0.00022191,2]
[363122403,1748590256411,-420.0,0.00022191,2]
[363122404,1748590256420,-420.0,0.00022191,2]
[363122405,1748590256429,-420.0,0.00022191,2]
[363122406,1748590256439,-420.0,0.00022191,2]
[363122407,1748590256448,-420.0,0.00022191,2]
[363122408,1748590256459,-654.14,0.00022191,2]
[363122409,1748590256469,-160.0,0.00022191,2]
[363122410,1748590256479,-420.0,0.00022191,2]
[363122411,1748590256489,-420.0,0.00022191,2]
[363122412,1748590256500,-420.0,0.00022191,2]
[363122413,1748590256510,-160.0,0.00022191,2]
[363122414,1748590256520,-420.0,0.00022191,2]
[363122415,1748590256530,-1980.22,0.00022191,2]
[363122416,1748590256540,-163.42628217,0.00022191,2]
[363122417,1748590256549,-277.13366348,0.00022191,2]
[363122418,1748590256559,-831.8,0.00022191,2]
[363122419,1748590256570,-1252.08,0.00022191,2]
[363122420,1748590256579,-500.0,0.00022191,2]
[363122421,1748590256589,-420.0,0.00022191,2]
[363122422,1748590256598,-1144.18,0.00022191,2]
[363122423,1748590256607,-1601.11,0.00022191,2]
[363122424,1748590256617,-1189.21,0.00022191,2]
[363122425,1748590256627,-731.34,0.00022191,2]
[363122426,1748590256636,-151.0,0.00022191,7]
[363122427,1748590256647,-420.0,0.00022191,2]
[363122428,1748590256658,-1732.766818,0.00022191,2]
[363122429,1748590256668,-1470.453943,0.00022191,2]
[363122430,1748590256677,-420.0,0.00022191,2]
[363122431,1748590256687,-151.0,0.00022191,7]
[363122432,1748590256696,-488.42,0.00022191,2]
[363122433,1748590256706,-420.0,0.00022191,2]
[363122434,1748590256716,-705.96,0.00022191,2]
[363122435,1748590256726,-420.0,0.00022191,2]
[363122436,1748590256736,-1423.4,0.00022191,2]
[363122437,1748590256746,-572.26,0.00022191,2]
[363122438,1748590256756,-931.8,0.00022191,2]
[363122439,1748590256768,-1423.01,0.00022191,2]
[363122440,1748590256778,-420.0,0.00022191,2]
[363122441,1748590256787,-515.5,0.00022191,2]
[363122442,1748590256797,-420.0,0.00022191,2]
[363122443,1748590256807,-781.02,0.00022191,2]
[363122444,1748590256816,-420.0,0.00022191,2]
[363122445,1748590256826,-420.0,0.00022191,2]
[363122446,1748590256835,-420.0,0.00022191,2]
[363122447,1748590256846,-478.45,0.00022191,2]
[363122448,1748590256856,-151.0,0.00022191,7]
[363122449,1748590256866,-151.0,0.00022191,7]
[363122450,1748590256875,-420.0,0.00022191,2]
[363122451,1748590256884,-1240.79,0.00022191,2]
[363122452,1748590256894,-506.29,0.00022191,2]
[363122453,1748590256903,-151.0,0.00022191,7]
[363122454,1748590256912,-784.13,0.00022191,2]
[363122455,1748590256922,-196.06,0.00022191,2]
[363122456,1748590256931,-420.0,0.00022191,2]
[363122457,1748590256940,-420.0,0.00022191,2]
[363122458,1748590256950,-420.0,0.00022191,2]
[363122459,1748590256959,-1137.36,0.00022191,2]
[363122460,1748590256968,-568.89,0.00022191,2]
[363122461,1748590256977,-839.39,0.00022191,2]
[363122462,1748590256987,-826.81,0.00022191,2]
[363122463,1748590256996,-783.19,0.00022191,2]
[363122464,1748590257005,-420.0,0.00022191,2]
[363122465,1748590257015,-655.77,0.00022191,2]
[363122466,1748590257024,-800.9,0.00022191,2]
[363122467,1748590257034,-1300.8,0.00022191,2]
[363122468,1748590257044,-2568.18,0.00022191,2]
[363122469,1748590257054,-676.43,0.00022191,2]
[363122470,1748590257063,-420.0,0.00022191,2]
[363122471,1748590257073,-613.75,0.00022191,2]
[363122472,1748590257082,-420.0,0.00022191,2]
[363122473,1748590257092,-420.0,0.00022191,2]
[363122474,1748590257101,-624.3,0.00022191,2]
[363122475,1748590257110,-518.54,0.00022191,2]
[363122476,1748590257120,-575.87,0.00022191,2]
[363122477,1748590257129,-1904.51,0.00022191,2]
[363122478,1748590257138,-1566.6,0.00022191,2]
[363122479,1748590257148,-626.22,0.00022191,2]
[363122480,1748590257158,-420.0,0.00022191,2]
[363122481,1748590257167,-420.0,0.00022191,2]
[363122482,1748590257177,-1086.74,0.00022191,2]
[363122483,1748590257186,-883.32,0.00022191,2]
[363122484,1748590257196,-420.0,0.00022191,2]
[363122485,1748590257205,-737.73,0.00022191,2]
[363122486,1748590257214,-420.0,0.00022191,2]
[363122487,1748590257223,-367.54817576,0.00022191,2]
[363122488,1748590257233,-434.96,0.00022191,2]
[363122489,1748590257242,-867.43,0.00022191,2]
[363122490,1748590257252,-646.16,0.00022191,2]
[363122491,1748590257261,-551.64,0.00022191,2]
[363122492,1748590257270,-1038.16,0.00022191,2]
[363122493,1748590257280,-620.61,0.00022191,2]
[363122494,1748590257290,-719.65,0.00022191,2]
[363122495,1748590257299,-420.0,0.00022191,2]
[363122496,1748590257308,-947.06,0.00022191,2]
[363122497,1748590257318,-493.62414178,0.00022191,2]
[363122498,1748590257327,-523.52,0.00022191,2]
[363122499,1748590257336,-420.0,0.00022191,2]
[363122500,1748590257346,-1981.68,0.00022191,2]
[363122501,1748590257355,-420.0,0.00022191,2]
[363122502,1748590257365,-420.0,0.00022191,2]
[363122503,1748590257374,-473.65,0.00022191,2]
[363122504,1748590257383,-420.0,0.00022191,2]
[363122505,1748590257394,-670.4,0.00022191,2]
[363122506,1748590257404,-420.0,0.00022191,2]
[363122507,1748590257414,-936.66,0.00022191,2]
[363122508,1748590257424,-420.0,0.00022191,2]
[363122509,1748590257433,-420.0,0.00022191,2]
[363122510,1748590257443,-420.0,0.00022191,2]
[363122511,1748590257453,-577.46,0.00022191,2]
[363122512,1748590257463,-493.0,0.00022191,2]
[363122513,1748590257472,-151.0,0.00022191,7]
[363122514,1748590257482,-420.0,0.00022191,2]
[363122515,1748590257492,-151.0,0.00022191,7]
[363122516,1748590257501,-284.344086,0.00022191,7]
[363122517,1748590257511,-420.0,0.00022191,2]
[363122518,1748590257521,-420.0,0.00022191,2]
[363122519,1748590257530,-388.97871371,0.00022191,2]
[363122520,1748590257540,-151.0,0.00022191,7]
[363122521,1748590257549,-151.0,0.00022191,7]
[363122522,1748590257559,-895.03,0.00022191,2]
[363122523,1748590257569,-420.0,0.00022191,2]
[363122524,1748590257578,-960.19,0.00022191,2]
[363122525,1748590257587,-420.0,0.00022191,2]
[363122526,1748590257597,-497.32,0.00022191,2]
[363122527,1748590257607,-420.0,0.00022191,2]
[363122528,1748590257617,-566.12,0.00022191,2]
[363122529,1748590257626,-420.0,0.00022191,2]
[363122530,1748590257636,-420.0,0.00022191,2]
[363122531,1748590257646,-550.98,0.00022191,2]
[363122532,1748590257655,-420.0,0.00022191,2]
[363122533,1748590257664,-1420.61,0.00022191,2]
[363122534,1748590257674,-420.0,0.00022191,2]
[363122535,1748590257684,-420.0,0.00022191,2]
[363122536,1748590257693,-601.12,0.00022191,2]
[363122537,1748590257704,-420.0,0.00022191,2]
[363122538,1748590257713,-674.41,0.00022191,2]
[363122539,1748590257724,-151.0,0.00022191,7]
[363122540,1748590257734,-801.07,0.00022191,2]
[363122541,1748590257743,-154.080537,0.00022191,7]
[363122542,1748590257754,-588.63,0.00022191,2]
[363122543,1748590257767,-420.0,0.00022191,2]
[363122544,1748590257776,-420.0,0.00022191,2]
[363122545,1748590257786,-426.0,0.00022191,2]
[363122546,1748590257796,-980.33,0.00022191,2]
[363122547,1748590257807,-420.0,0.00022191,2]
[363122548,1748590257816,-1304.3,0.00022191,2]
[363122549,1748590257826,-856.02,0.00022191,2]
[363122550,1748590257835,-519.89,0.00022191,2]
[363122551,1748590257846,-420.0,0.00022191,2]
[363122552,1748590257856,-759.29,0.00022191,2]
[363122553,1748590257865,-510.59,0.00022191,2]
[363122554,1748590257874,-1091.32,0.00022191,2]
[363122555,1748590257883,-420.0,0.00022191,2]
[363122556,1748590257893,-420.0,0.00022191,2]
[363122557,1748590257903,-420.0,0.00022191,2]
[363122558,1748590257912,-1030.65,0.00022191,2]
[363122559,1748590257924,-420.0,0.00022191,2]
[363122560,1748590257933,-556.09,0.00022191,2]
[363122561,1748590257943,-420.0,0.00022191,2]
[363122562,1748590257952,-420.0,0.00022191,2]
[363122563,1748590257962,-568.6,0.00022191,2]
[363122564,1748590257971,-228.70818861,0.00022191,2]
[363122565,1748590257981,-420.0,0.00022191,2]
[363122566,1748590257990,-420.0,0.00022191,2]
[363122567,1748590258000,-790.23,0.00022191,2]
[363122568,1748590258009,-184.19,0.00022191,2]
[363122569,1748590258019,-420.89,0.00022191,2]
[363122570,1748590258028,-1569.12,0.00022191,2]
[363122571,1748590258037,-151.0,0.00022191,7]
[363122572,1748590258047,-420.0,0.00022191,2]
[363122573,1748590258056,-420.0,0.00022191,2]
[363122574,1748590258065,-420.0,0.00022191,2]
[363122575,1748590258074,-170.3644901,0.00022191,2]
[363122576,1748590258084,-2410.04,0.00022191,2]
[363122577,1748590258093,-1558.43,0.00022191,2]
[363122578,1748590258102,-613.64,0.00022191,2]
[363122579,1748590258112,-160.0,0.00022191,2]
[363122580,1748590258121,-1089.82,0.00022191,2]
[363122581,1748590258131,-420.0,0.00022191,2]
[363122582,1748590258140,-950.67,0.00022191,2]
[363122583,1748590258149,-171.96100609,0.00022191,2]
[363122584,1748590258159,-151.0,0.00022191,7]
[363122585,1748590258168,-151.0,0.00022191,7]
[363122586,1748590258178,-151.0,0.00022191,7]
[363122587,1748590258187,-151.0,0.00022191,7]
[363122588,1748590258197,-151.0,0.00022191,7]
[363122589,1748590258207,-420.0,0.00022191,2]
[363122590,1748590258217,-151.0,0.00022191,7]
[363122591,1748590258227,-151.0,0.00022191,7]
[363122592,1748590258236,-231.771364,0.00022191,7]
[363122593,1748590258246,-591.79,0.00022191,2]
[363122594,1748590258256,-457.41666003,0.00022191,2]
[363122595,1748590258267,-420.0,0.00022191,2]
[363122596,1748590258275,-1433.94,0.00022191,2]
[363122597,1748590258282,-455.81,0.00022191,2]
[363122598,1748590258288,-631.58,0.00022191,2]
[363122599,1748590258296,-1346.63,0.00022191,2]
[363122600,1748590258304,-524.84,0.00022191,2]
[363122601,1748590258312,-151.0,0.00022191,7]
[363122602,1748590258319,-153.237277,0.00022191,7]
[363122603,1748590258325,-420.0,0.00022191,2]
[363122604,1748590258332,-420.0,0.00022191,2]
[363122605,1748590258338,-1233.24,0.00022191,2]
[363122606,1748590258344,-880.27,0.00022191,2]
[363122607,1748590258351,-150.0,0.00022191,2]
[363122608,1748590258357,-153.98187331,0.00022191,2]
[363122609,1748590258365,-836.0,0.00022191,2]
[363122610,1748590258374,-189.910248,0.00022191,7]
[363122611,1748590258383,-189.910248,0.00022191,7]
[363122612,1748590258392,-189.910248,0.00022191,7]
[363122613,1748590258402,-420.0,0.00022191,2]
[363122614,1748590258411,-1109.49,0.00022191,2]
[363122615,1748590258421,-420.0,0.00022191,2]
[363122616,1748590258430,-1323.48,0.00022191,2]
[363122617,1748590258440,-450.48,0.00022191,2]
[363122618,1748590258449,-1774.93,0.00022191,2]
[363122619,1748590258458,-324.34291906,0.00022191,2]
[363122620,1748590258491,-999.89332,0.00022191,2]
[363122621,1748590258502,-215.79376094,0.00022191,2]
[363122622,1748590258513,-189.910248,0.00022191,7]
[363122623,1748590258522,-189.910248,0.00022191,7]
[363122624,1748590258531,-189.910248,0.00022191,7]
[363122625,1748590258540,-584.29,0.00022191,2]
[363122626,1748590258550,-420.0,0.00022191,2]
[363122627,1748590258559,-150.0,0.00022191,2]
[363122628,1748590258569,-150.0,0.00022191,2]
[363122629,1748590258578,-1097.4,0.00022191,2]
[363122630,1748590258588,-420.0,0.00022191,2]
[363122631,1748590258598,-576.17,0.00022191,2]
[363122632,1748590258607,-557.0,0.00022191,2]
[363122633,1748590258616,-1804.84,0.00022191,2]
[363122634,1748590258625,-472.63,0.00022191,2]
[363122635,1748590258635,-1514.44,0.00022191,2]
[363122636,1748590258644,-150.0,0.00022191,2]
[363122637,1748590258653,-420.0,0.00022191,2]
[363122638,1748590258663,-212.57868177,0.00022191,2]
[363122639,1748590258678,-207.42131823,0.00022191,2]
[363122640,1748590258687,-696.43,0.00022191,2]
[363122641,1748590258697,-1146.95,0.00022191,2]
[363122642,1748590258707,-3333.04,0.00022191,2]
[363122643,1748590258716,-150.0,0.00022191,2]
[363122644,1748590258725,-604.84,0.00022191,2]
[363122645,1748590258735,-150.0,0.00022191,2]
[363122646,1748590258745,-420.0,0.00022191,2]
[363122647,1748590258756,-974.81,0.00022191,2]
[363122648,1748590258767,-150.0,0.00022191,2]
[363122649,1748590258777,-1242.09,0.00022191,2]
[363122650,1748590258787,-420.0,0.00022191,2]
[363122651,1748590258796,-420.0,0.00022191,2]
[363122652,1748590258806,-150.0,0.00022191,2]
[363122653,1748590258815,-420.0,0.00022191,2]
[363122654,1748590258825,-187.60307668,0.00022191,2]
[363122655,1748590258835,-204.09068671,0.00022191,2]
[363122656,1748590258844,-822.36,0.00022191,2]
[363122657,1748590258854,-420.0,0.00022191,2]
[363122658,1748590258863,-500.0,0.00022191,2]
[363122659,1748590258872,-2210.04175971,0.00022191,2]
[363122660,1748590258886,-198.51824029,0.00022191,2]
[363122661,1748590258896,-165.81490498,0.00022191,2]
[363122662,1748590258906,-1197.37,0.00022191,2]
[363122663,1748590258915,-262.09829351,0.00022191,2]
[363122664,1748590258924,-420.0,0.00022191,2]
[363122665,1748590258933,-2476.78181501,0.00022191,2]
[363122666,1748590258944,-679.72818499,0.00022191,2]
[363122667,1748590258953,-150.0,0.00022191,2]
[363122668,1748590258962,-151.0,0.00022191,7]
[363122669,1748590258971,-1184.4,0.00022191,2]
[363122670,1748590258980,-420.0,0.00022191,2]
[363122671,1748590258989,-151.0,0.00022191,7]
[363122672,1748590258998,-152.345332,0.00022191,7]
[363122673,1748590259008,-151.0,0.00022191,7]
[363122674,1748590259017,-672.89,0.00022191,2]
[363122675,1748590259026,-420.0,0.00022191,2]
[363122676,1748590259035,-771.51,0.00022191,2]
[363122677,1748590259044,-420.0,0.00022191,2]
[363122678,1748590259054,-605.68,0.00022191,2]
[363122679,1748590259063,-375.95952,0.00022191,2]
[363122680,1748590259072,-557.67,0.00022191,2]
[363122681,1748590259081,-1780.63,0.00022191,2]
[363122682,1748590259090,-10605.16,0.00022191,2]
[363122683,1748590259099,-420.0,0.00022191,2]
[363122684,1748590259108,-1468.56,0.00022191,2]
[363122685,1748590259117,-420.0,0.00022191,2]
[363122686,1748590259126,-1696.46696301,0.00022191,2]
[363122687,1748590259138,-8025.54,0.00022191,2]
[363122688,1748590259152,-1419.77850599,0.00022191,2]
[363122689,1748590259842,-420.0,0.00021917,2]
[363122690,1748590259851,-2722.59,0.00021917,2]
[363122691,1748590259861,-420.0,0.00021917,2]
[363122692,1748590259870,-458.854531,0.00022191,2]
[363122693,1748590259880,-420.0,0.00022191,2]
[363122694,1748590259889,-420.0,0.00022191,2]
[363122695,1748590259898,-842.39,0.00022191,2]
[363122696,1748590259907,-1979.43290887,0.00022191,2]
[363122697,1748590259926,-3200.56709113,0.00022191,2]
[363122698,1748590259935,-420.0,0.00022191,2]
[363122699,1748590259944,-420.0,0.00022191,2]
[363122700,1748590260154,-286.83290887,0.00022191,2]
[363122701,1748590260167,-682.05709113,0.00022191,2]
[363122702,1748590260176,-450.14670696,0.00022191,2]
[363122703,1748590260188,-670.68329304,0.00022191,2]
[363122704,1748590260197,-697.42,0.00022191,2]
[363122705,1748590260207,-420.0,0.00022191,2]
[363122706,1748590260216,-420.0,0.00022191,2]
[363122707,1748590260225,-201.23079696,0.00022191,2]
[363122708,1748590260237,-458.475,0.00022191,2]
[363122709,1748590260257,-0.87420304,0.00022191,2]
[363122710,1748590260266,-1026.89,0.00022191,2]
[363122711,1748590260275,-165.22176588,0.00022191,2]
[363122712,1748590260361,-254.77823412,0.00022191,2]
[363122713,1748590260370,-158.86982829,0.00022191,2]
[363122714,1748590260381,-261.13017171,0.00022191,2]
[363122715,1748590260391,-13155.25,0.00022191,2]
[363122716,1748590260400,-713.15,0.00022191,2]
[363122717,1748590260409,-692.85,0.00022191,2]
[363122718,1748590260418,-1724.86,0.00022191,2]
[363122719,1748590260428,-420.0,0.00022191,2]
[363122720,1748590260437,-1106.21,0.00022191,2]
[363122721,1748590260446,-1326.23,0.00022191,2]
[363122722,1748590260456,-512.42816972,0.00022191,2]
[363122723,1748590260465,-683.64,0.00022191,2]
[363122724,1748590260474,-420.0,0.00022191,2]
[363122725,1748590260483,-604.29,0.00022191,2]
[363122726,1748590260493,-753.36,0.00022191,2]
[363122727,1748590260504,-4687.613041,0.00022191,2]
[363122728,1748590260520,-1168.366959,0.00022191,2]
[363122729,1748590260529,-420.0,0.00022191,2]
[363122730,1748590260540,-547.19,0.00022191,2]
[363122731,1748590260549,-476.01,0.00022191,2]
[363122732,1748590260560,-1043.93,0.00022191,2]
[363122733,1748590260569,-1202.88,0.00022191,2]
[363122734,1748590260579,-948.52,0.00022191,2]
[363122735,1748590260588,-3433.57,0.00022191,2]
[363122736,1748590260597,-986.56,0.00022191,2]
[363122737,1748590260606,-7751.08,0.00022191,2]
[363122738,1748590260616,-1051.07,0.00022191,2]
[363122739,1748590260626,-420.0,0.00022191,2]
[363122740,1748590260637,-2655.21,0.00022191,2]
[363122741,1748590260647,-420.0,0.00022191,2]
[363122742,1748590260656,-622.09,0.00022191,2]
[363122743,1748590260665,-151.0,0.00022191,7]
[363122744,1748590260675,-151.0,0.00022191,7]
[363122745,1748590260684,-420.0,0.00022191,2]
[363122746,1748590260694,-151.0,0.00022191,7]
[363122747,1748590260703,-2133.46,0.00022191,2]
[363122748,1748590260713,-151.0,0.00022191,7]
[363122749,1748590260722,-1211.09,0.00022191,2]
[363122750,1748590260732,-420.0,0.00022191,2]
[363122751,1748590260741,-1473.58,0.00022191,2]
[363122752,1748590260753,-216.355224,0.00022191,7]
[363122753,1748590260764,-151.0,0.00022191,7]
[363122754,1748590260774,-769.37,0.00022191,2]
[363122755,1748590260783,-420.0,0.00022191,2]
[363122756,1748590260793,-1620.76,0.00022191,2]
[363122757,1748590260803,-660.31,0.00022191,2]
[363122758,1748590260813,-2887.34,0.00022191,2]
[363122759,1748590260823,-518.91,0.00022191,2]
[363122760,1748590260832,-1128.28,0.00022191,2]
[363122761,1748590260843,-752.74,0.00022191,2]
[363122762,1748590260852,-420.0,0.00022191,2]
[363122763,1748590260862,-420.0,0.00022191,2]
[363122764,1748590260871,-840.22,0.00022191,2]
[363122765,1748590260881,-2084.4,0.00022191,2]
[363122766,1748590260889,-11523.73,0.00022191,2]
[363122767,1748590260898,-420.0,0.00022191,2]
[363122768,1748590260907,-427.44,0.00022191,2]
[363122769,1748590260917,-420.0,0.00022191,2]
[363122770,1748590260926,-2319.56,0.00022191,2]
[363122771,1748590260935,-690.98,0.00022191,2]
[363122772,1748590260944,-1312.21,0.00022191,2]
[363122773,1748590260953,-1893.06,0.00022191,2]
[363122774,1748590260963,-500.0,0.00022191,2]
[363122775,1748590260972,-1738.65,0.00022191,2]
[363122776,1748590260982,-420.0,0.00022191,2]
[363122777,1748590260991,-1220.01,0.00022191,2]
[363122778,1748590261002,-420.0,0.00022191,2]
[363122779,1748590261012,-420.0,0.00022191,2]
[363122780,1748590261021,-425.08,0.00022191,2]
[363122781,1748590261032,-420.0,0.00022191,2]
[363122782,1748590261040,-420.0,0.00022191,2]
[363122783,1748590261049,-500.0,0.00022191,2]
[363122784,1748590261058,-978.88,0.00022191,2]
[363122785,1748590261068,-6926.33,0.00022191,2]
[363122786,1748590261077,-1394.11,0.00022191,2]
[363122787,1748590261087,-141408.82,0.00022191,2]
[363122788,1748590261096,-35782.4,0.00022191,2]
[363122789,1748590261105,-1538.58,0.00022191,2]
[363122790,1748590261114,-1394.0,0.00022191,2]
[363122791,1748590261123,-420.0,0.00022191,2]
[363122792,1748590261133,-420.0,0.00022191,2]
[363122793,1748590261142,-5755.37,0.00022191,2]
[363122794,1748590261151,-993.08,0.00022191,2]
[363122795,1748590261160,-3277.47,0.00022191,2]
[363122796,1748590261169,-420.0,0.00022191,2]
[363122797,1748590261178,-714.91,0.00022191,2]
[363122798,1748590261187,-1001.99,0.00022191,2]
[363122799,1748590261196,-420.0,0.00022191,2]
[363122800,1748590261206,-150.76906654,0.00022191,2]
[363122801,1748590261215,-3567.0,0.00022191,2]
[363122802,1748590261224,-167.43340892,0.00022191,2]
[363122803,1748590261234,-1025.35,0.00022191,2]
[363122804,1748590261243,-1009.7,0.00022191,2]
[363122805,1748590261255,-451.47,0.00022191,2]
[363122806,1748590261264,-150.0,0.00022191,2]
[363122807,1748590261273,-150.0,0.00022191,2]
[363122808,1748590261282,-500.0,0.00022191,2]
[363122809,1748590261291,-903.05,0.00022191,2]
[363122810,1748590261301,-552.1,0.00022191,2]
[363122811,1748590261310,-1015.37,0.00022191,2]